bitfinex-derivatives/quotes_BTCF0:USTF0_20250330
["timestamp","ask_amount","ask_price","bid_price","bid_amount"]
[1743312982993,0.25397243,83171.0,83170.0,0.002]
[1743312983303,0.61477243,83171.0,83170.0,0.002]
[1743312986999,0.97557243,83171.0,83170.0,0.002]
[1743312988821,0.1202765,83165.0,83164.0,8e-05]
[1743312989100,0.2355165,83165.0,83164.0,8e-05]
[1743312989607,0.2355165,83165.0,83163.0,0.00048098]
[1743312989608,0.120278,83164.0,83163.0,0.00048098]
[1743312989797,0.546458,83164.0,83163.0,0.00128098]
[1743312989996,0.544458,83164.0,83163.0,0.00048098]
[1743312990197,0.542458,83164.0,83163.0,0.03288098]
[1743312990397,0.542458,83164.0,83163.0,0.03364098]
[1743312990807,0.542458,83164.0,83163.0,0.03764098]
[1743312991798,0.542458,83164.0,83163.0,0.03688098]
[1743312992400,0.542458,83164.0,83163.0,0.03764098]
[1743312993399,0.542458,83164.0,83163.0,0.07064098]
[1743312994198,0.542458,83164.0,83163.0,0.19016038]
[1743312994403,0.542458,83164.0,83163.0,0.19092038]
[1743312995799,0.181658,83164.0,83163.0,0.19092038]
[1743312996005,0.542458,83164.0,83163.0,0.19092038]
[1743313001813,0.542458,83164.0,83163.0,0.07064098]
[1743313002013,0.1202866,83158.0,83157.0,8e-05]
[1743313002214,0.1209666,83158.0,83157.0,8e-05]
[1743313002807,0.1853666,83158.0,83157.0,8e-05]
[1743313003016,0.1853666,83158.0,83157.0,0.1203639]
[1743313003214,0.1853666,83158.0,83157.0,0.1210039]
[1743313004309,0.1853666,83158.0,83157.0,0.2412888]
[1743313005207,0.1853666,83158.0,83157.0,0.2738088]
[1743313006205,0.1971837,83158.0,83157.0,0.2738088]
[1743313006410,0.1853666,83158.0,83157.0,0.2738088]
[1743313006910,0.1152,83158.0,83157.0,0.2738088]
[1743313007113,0.00068,83158.0,83157.0,0.3063088]
[1743313007312,0.1152,83158.0,83157.0,0.3063088]
[1743313014627,0.25897785,83158.0,83157.0,0.3063088]
[1743313014925,0.14445785,83158.0,83157.0,0.3063088]
[1743313018130,0.20945785,83158.0,83157.0,0.3063088]
[1743313020837,0.14445785,83158.0,83157.0,0.3063088]
[1743313025436,0.00068,83158.0,83157.0,0.3063088]
[1743313025637,0.17337849,83162.0,83161.0,0.1202823]
[1743313025838,0.17409849,83162.0,83161.0,0.1209623]
[1743313026246,0.10859849,83162.0,83161.0,0.1209623]
[1743313026430,0.10859849,83162.0,83161.0,0.1860623]
[1743313026631,0.10855849,83162.0,83161.0,0.1860623]
[1743313028436,0.00068,83162.0,83161.0,0.1860623]
[1743313028740,0.0645,83165.0,83164.0,0.120278]
[1743313029338,0.06522,83165.0,83164.0,0.120958]
[1743313029638,0.06522,83165.0,83164.0,0.184158]
[1743313036731,0.06522,83165.0,83164.0,0.153258]
[1743313038745,0.17309849,83165.0,83164.0,0.153258]
[1743313041447,0.17309849,83165.0,83164.0,0.183458]
[1743313042338,0.06522,83165.0,83164.0,0.183458]
[1743313043235,0.06522,83165.0,83164.0,0.153258]
[1743313046543,0.06522,83165.0,83164.0,0.183458]
[1743313051538,0.06518,83165.0,83164.0,0.183458]
[1743313052640,0.06518,83165.0,83164.0,0.544258]
[1743313052951,0.0645,83165.0,83164.0,0.544258]
[1743313054153,0.0645,83165.0,83164.0,0.183458]
[1743313054456,0.06526,83165.0,83164.0,0.544258]
[1743313054756,0.0645,83165.0,83164.0,0.544258]
[1743313055355,0.0645,83165.0,83164.0,0.183458]
[1743313055555,0.06518,83165.0,83164.0,0.544258]
[1743313055853,0.0645,83165.0,83164.0,0.544258]
[1743313057449,0.0645,83165.0,83164.0,0.183458]
[1743313059952,0.0645,83165.0,83164.0,0.120958]
[1743313060149,0.06518,83165.0,83164.0,0.120958]
[1743313063457,0.0645,83165.0,83164.0,0.120958]
[1743313063893,0.06526,83165.0,83164.0,0.120958]
[1743313067252,0.07728872,83165.0,83164.0,0.120958]
[1743313071170,0.19756522,83165.0,83164.0,0.120958]
[1743313071763,0.07728872,83165.0,83164.0,0.120958]
[1743313080170,0.19756522,83165.0,83164.0,0.120958]
[1743313081275,0.19756522,83165.0,83164.0,0.00068]
[1743313081666,0.0601397,83163.0,83159.0,0.27641849]
[1743313081978,0.2436247,83162.0,83161.0,0.1202821]
[1743313082274,0.2443047,83162.0,83161.0,0.1209221]
[1743313084486,0.6051047,83162.0,83161.0,0.1209221]
[1743313086171,0.6051047,83162.0,83161.0,0.1209223]
[1743313089577,0.6051047,83162.0,83161.0,0.00064]
[1743313090077,0.6051047,83162.0,83161.0,0.1209223]
[1743313090580,0.6051047,83162.0,83161.0,0.00064]
[1743313090987,0.1202823,83161.0,83157.0,0.0602234]
[1743313091175,0.1202866,83158.0,83157.0,0.1210068]
[1743313091481,0.2354066,83158.0,83157.0,0.1210068]
[1743313091985,0.2354066,83158.0,83157.0,0.1203668]
[1743313092189,0.2354066,83158.0,83157.0,0.1210068]
[1743313092388,0.5962066,83158.0,83157.0,0.1210068]
[1743313092679,0.5962066,83158.0,83157.0,0.1210081]
[1743313092887,0.5962066,83158.0,83157.0,0.00072]
[1743313093890,0.5962066,83158.0,83157.0,8e-05]
[1743313094078,0.5962066,83158.0,83157.0,0.00072]
[1743313094686,0.0601468,83154.0,83148.0,0.1203006]
[1743313094884,0.1202953,83152.0,83151.0,0.1210168]
[1743313095086,0.15207531,83152.0,83151.0,0.1209368]
[1743313095287,0.18477531,83152.0,83151.0,0.1209368]
[1743313096382,0.54557531,83152.0,83151.0,0.1209368]
[1743313098690,0.18477531,83152.0,83151.0,0.1209368]
[1743313098876,0.54557531,83152.0,83151.0,0.1209368]
[1743313099383,0.1202982,83150.0,83149.0,8e-05]
[1743313099583,0.2358182,83150.0,83149.0,8e-05]
[1743313099785,0.1202997,83149.0,83148.0,0.1203002]
[1743313099989,0.1872597,83149.0,83148.0,0.1209402]
[1743313100984,0.19923177,83149.0,83148.0,0.1209402]
[1743313101890,0.19923177,83149.0,83148.0,0.1509402]
[1743313102281,0.19923177,83149.0,83148.0,0.1817402]
[1743313102589,0.30677878,83149.0,83148.0,0.1817402]
[1743313105988,0.19923177,83149.0,83148.0,0.1817402]
[1743313109285,0.19923177,83149.0,83148.0,0.1509402]
[1743313109889,0.19923177,83149.0,83148.0,0.1209402]
[1743313112280,0.56003177,83149.0,83148.0,0.1209402]
[1743313125200,0.42776,83149.0,83148.0,0.1525402]
[1743313125499,0.36196,83149.0,83148.0,0.1525402]
[1743313125895,0.59995518,83149.0,83148.0,0.1525402]
[1743313126696,0.59995518,83149.0,83148.0,0.1647339]
[1743313127292,0.72025488,83149.0,83148.0,0.1647339]
[1743313128596,0.78115488,83149.0,83148.0,0.1647339]
[1743313129201,0.42035488,83149.0,83148.0,0.1647339]
[1743313129996,0.1823597,83149.0,83148.0,0.1647339]
[1743313136996,0.06206,83149.0,83148.0,0.1647339]
[1743313142808,0.00116,83149.0,83148.0,0.1647339]
[1743313146911,0.00116,83149.0,83148.0,0.5255339]
[1743313148514,0.06286,83153.0,83152.0,0.1202953]
[1743313148708,0.06362,83153.0,83152.0,0.1209753]
[1743313149516,0.06362,83153.0,83152.0,0.1514753]
[1743313149716,0.06362,83153.0,83152.0,0.1818753]
[1743313152315,0.06362,83153.0,83152.0,0.1209753]
[1743313152516,0.06362,83153.0,83152.0,0.1827753]
[1743313154719,0.06362,83153.0,83152.0,0.1509753]
[1743313155015,0.06362,83153.0,83152.0,0.1209753]
[1743313157121,0.06362,83153.0,83152.0,0.1522753]
[1743313157819,0.17141623,83153.0,83152.0,0.1522753]
[1743313160415,0.17141623,83153.0,83152.0,0.1853753]
[1743313161320,0.17141623,83153.0,83152.0,0.1522753]
[1743313161515,0.17141623,83153.0,83152.0,0.1853753]
[1743313166215,0.17141623,83153.0,83152.0,0.1522753]
[1743313168116,0.06362,83153.0,83152.0,0.1522753]
[1743313170925,0.06362,83153.0,83152.0,0.1209753]
[1743313171119,0.09432,83153.0,83152.0,0.1209753]
[1743313172318,0.09432,83153.0,83152.0,0.1510753]
[1743313174628,0.09432,83153.0,83152.0,0.1209753]
[1743313175527,0.09432,83153.0,83152.0,0.1525753]
[1743313175730,0.09432,83153.0,83152.0,0.36885199]
[1743313179023,0.06362,83153.0,83152.0,0.36885199]
[1743313183530,0.06132,83153.0,83152.0,0.36885199]
[1743313186439,0.1816139,83153.0,83152.0,0.33725199]
[1743313188035,0.06132,83153.0,83152.0,0.33725199]
[1743313189436,0.1816139,83153.0,83152.0,0.33725199]
[1743313192036,0.1816139,83153.0,83152.0,0.1209753]
[1743313192339,0.1816139,83153.0,83152.0,0.1202953]
[1743313192942,0.1816139,83153.0,83152.0,0.1209353]
[1743313193140,0.1816139,83153.0,83152.0,0.1202953]
[1743313195035,0.1816139,83153.0,83152.0,0.1209753]
[1743313196844,0.5424139,83153.0,83152.0,0.1209753]
[1743313209947,0.1816139,83153.0,83152.0,0.1209753]
[1743313215149,0.5424139,83153.0,83152.0,0.1209753]
[1743313215350,0.1816139,83153.0,83152.0,0.1209753]
[1743313215551,0.5424139,83153.0,83152.0,0.1209753]
[1743313216559,0.5424139,83153.0,83152.0,0.00068]
[1743313216754,0.1202953,83152.0,83151.0,8e-05]
[1743313216960,0.4818553,83152.0,83151.0,8e-05]
[1743313217151,0.5434553,83152.0,83151.0,8e-05]
[1743313217347,0.1826553,83152.0,83151.0,8e-05]
[1743313217551,0.5434553,83152.0,83151.0,0.00072]
[1743313217751,0.5434553,83152.0,83151.0,8e-05]
[1743313218858,0.5434553,83152.0,83151.0,0.00076]
[1743313219159,0.72296062,83152.0,83151.0,0.00076]
[1743313219364,0.72296062,83152.0,83151.0,8e-05]
[1743313220057,0.36216062,83152.0,83151.0,8e-05]
[1743313220257,0.72296062,83152.0,83151.0,0.00072]
[1743313220459,0.72296062,83152.0,83151.0,8e-05]
[1743313221253,0.72296062,83152.0,83151.0,0.1823768]
[1743313221550,0.54106532,83152.0,83151.0,0.1830568]
[1743313221756,0.18026532,83152.0,83151.0,0.2136568]
[1743313222160,0.23875077,83152.0,83151.0,0.2136568]
[1743313223361,0.23875077,83152.0,83151.0,0.2135768]
[1743313223561,0.35904607,83152.0,83151.0,0.2135768]
[1743313224159,0.23875077,83152.0,83151.0,0.2135768]
[1743313226159,0.00076,83152.0,83151.0,0.2135768]
[1743313230574,0.0308,83153.0,83152.0,0.1202953]
[1743313230775,0.0316,83153.0,83152.0,0.1210153]
[1743313231068,0.0316,83153.0,83152.0,0.1848153]
[1743313233771,0.0636,83153.0,83152.0,0.1848153]
[1743313235270,0.1838939,83153.0,83152.0,0.1848153]
[1743313235582,0.0636,83153.0,83152.0,0.1848153]
[1743313235767,0.0636,83153.0,83152.0,0.1210153]
[1743313236265,0.0964,83153.0,83152.0,0.1210153]
[1743313237265,0.2166939,83153.0,83152.0,0.1210153]
[1743313245175,0.36050415,83153.0,83152.0,0.1210153]
[1743313249873,0.47482415,83153.0,83152.0,0.1210153]
[1743313252577,0.3310139,83153.0,83152.0,0.1210153]
[1743313254077,0.21072,83153.0,83152.0,0.1210153]
[1743313257572,0.21072,83153.0,83152.0,0.1538153]
[1743313258076,0.21072,83153.0,83152.0,0.1210153]
[1743313259482,0.21072,83153.0,83152.0,0.1533153]
[1743313260686,0.3310139,83153.0,83152.0,0.1533153]
[1743313261590,0.3310139,83153.0,83152.0,0.1855153]
[1743313266086,0.2982139,83153.0,83152.0,0.1855153]
[1743313267400,0.44202415,83153.0,83152.0,0.1855153]
[1743313271190,0.2982139,83153.0,83152.0,0.1855153]
[1743313275306,0.44202415,83153.0,83152.0,0.1855153]
[1743313280107,0.20741025,83153.0,83152.0,0.1855153]
[1743313280303,0.14461025,83153.0,83152.0,0.2164153]
[1743313280799,0.20811025,83153.0,83152.0,0.2164153]
[1743313281001,0.32840415,83153.0,83152.0,0.2164153]
[1743313283503,0.1845939,83153.0,83152.0,0.43269199]
[1743313284411,0.0643,83153.0,83152.0,0.43269199]
[1743313295921,0.0643,83153.0,83152.0,0.2164153]
[1743313302618,0.0643,83153.0,83152.0,0.43294034]
[1743313302813,0.06426,83153.0,83152.0,0.43294034]
[1743313304323,0.0635,83153.0,83152.0,0.43294034]
[1743313304623,0.06422,83153.0,83152.0,0.43294034]
[1743313305420,0.0635,83153.0,83152.0,0.43222034]
[1743313310127,0.0635,83153.0,83152.0,0.2156953]
[1743313310429,0.06422,83153.0,83152.0,0.2163353]
[1743313312021,0.00072,83153.0,83152.0,0.2163353]
[1743313312221,0.14381025,83155.0,83154.0,0.1202924]
[1743313312429,0.14457025,83155.0,83154.0,0.1209724]
[1743313315023,0.1088621,83155.0,83154.0,0.1209724]
[1743313315431,0.1088621,83155.0,83154.0,0.1845724]
[1743313317123,0.1088221,83155.0,83154.0,0.1845724]
[1743313318133,0.00072,83155.0,83154.0,0.1845724]
[1743313318332,0.06582,83155.0,83154.0,0.1845724]
[1743313325330,0.0651,83155.0,83154.0,0.1845724]
[1743313325537,0.06582,83155.0,83154.0,0.1845724]
[1743313326438,0.0651,83155.0,83154.0,0.1845724]
[1743313326641,0.06582,83155.0,83154.0,0.1845724]
[1743313327030,0.0651,83155.0,83154.0,0.1845724]
[1743313327225,0.06586,83155.0,83154.0,0.1845724]
[1743313327432,0.0651,83155.0,83154.0,0.1845724]
[1743313327640,0.06582,83155.0,83154.0,0.1845724]
[1743313335445,0.0651,83155.0,83154.0,0.1845724]
[1743313336339,0.0651,83155.0,83154.0,0.47298635]
[1743313340349,0.0651,83155.0,83154.0,0.1845724]
[1743313350463,0.0651,83155.0,83154.0,0.5453724]
[1743313352174,0.0651,83155.0,83154.0,1.30908255]
[1743313353362,0.0651,83155.0,83154.0,1.24548255]
[1743313355971,0.0651,83155.0,83154.0,0.4817724]
[1743313356164,0.0651,83155.0,83154.0,0.1209724]
[1743313356366,0.0651,83155.0,83154.0,0.4817724]
[1743313357969,0.0651,83155.0,83154.0,0.5125724]
[1743313359062,0.0651,83155.0,83154.0,0.8730974]
[1743313360576,0.0651,83155.0,83154.0,0.5122974]
[1743313360883,0.0651,83155.0,83154.0,0.8730974]
[1743313363072,0.0651,83155.0,83154.0,0.5122974]
[1743313363272,0.0651,83155.0,83154.0,0.8730974]
[1743313366183,0.0651,83155.0,83154.0,0.5122974]
[1743313366484,0.0651,83155.0,83154.0,0.8730974]
[1743313366880,0.0651,83155.0,83154.0,0.5125724]
[1743313368574,0.0651,83155.0,83154.0,0.1517724]
[1743313368774,0.0651,83155.0,83154.0,0.5125724]
[1743313369884,0.0651,83155.0,83154.0,0.1517724]
[1743313370078,0.0651,83155.0,83154.0,0.5125724]
[1743313370881,0.0651,83155.0,83154.0,0.1517724]
[1743313371376,0.0651,83155.0,83154.0,0.5125724]
[1743313372283,0.0651,83155.0,83154.0,0.1517724]
[1743313372676,0.0651,83155.0,83154.0,0.5125724]
[1743313378493,0.0651,83155.0,83154.0,0.1517724]
[1743313378682,0.06586,83155.0,83154.0,0.5125724]
[1743313378885,0.0651,83155.0,83154.0,0.5125724]
[1743313379995,0.0651,83155.0,83154.0,0.91554617]
[1743313382494,0.0651,83155.0,83154.0,0.55474617]
[1743313382689,0.0651,83155.0,83154.0,0.91554617]
[1743313383687,0.0651,83155.0,83154.0,0.55474617]
[1743313383889,0.0651,83155.0,83154.0,0.91554617]
[1743313384492,0.0651,83155.0,83154.0,0.88474617]
[1743313385693,0.06384155,83155.0,83154.0,0.88474617]
[1743313387397,0.06384155,83155.0,83154.0,0.52394617]
[1743313387697,0.06384155,83155.0,83154.0,0.1209724]
[1743313387888,0.06456155,83155.0,83154.0,0.1209724]
[1743313388288,0.18485255,83155.0,83154.0,0.00068]
[1743313388503,0.19705731,83155.0,83154.0,0.00068]
[1743313388699,0.1202924,83154.0,83153.0,0.2884946]
[1743313388892,0.1212124,83154.0,83153.0,0.2391546]
[1743313389093,0.3023124,83154.0,83153.0,0.1892546]
[1743313389294,0.3023124,83154.0,83153.0,0.3095485]
[1743313392097,1.0540124,83154.0,83153.0,0.3095485]
[1743313393604,1.0540124,83154.0,83153.0,0.1209339]
[1743313393801,1.0540124,83154.0,83153.0,0.1202939]
[1743313394393,0.9040124,83154.0,83153.0,0.1202939]
[1743313394598,0.5432124,83154.0,83153.0,0.1209339]
[1743313395111,0.5432124,83154.0,83153.0,0.1202939]
[1743313396699,0.1202939,83153.0,83152.0,8e-05]
[1743313396905,0.1212139,83153.0,83152.0,8e-05]
[1743313397108,0.1539139,83153.0,83152.0,8e-05]
[1743313397506,0.1203011,83148.0,83147.0,0.00056107]
[1743313397702,0.1203011,83148.0,83147.0,0.12086357]
[1743313397703,0.2354211,83148.0,83147.0,0.12086357]
[1743313398009,0.2354211,83148.0,83147.0,0.12150357]
[1743313399199,0.5962211,83148.0,83147.0,0.12150357]
[1743313399604,0.5962211,83148.0,83147.0,0.12086357]
[1743313400408,0.5962211,83148.0,83147.0,0.12158357]
[1743313401211,0.2354211,83148.0,83147.0,0.12158357]
[1743313401406,0.5962211,83148.0,83147.0,0.12158357]
[1743313401803,0.70413288,83148.0,83147.0,0.12158357]
[1743313402003,0.70413288,83148.0,83143.0,0.00012043]
[1743313402004,0.1203069,83144.0,83143.0,0.1203069]
[1743313402206,0.12150691,83144.0,83143.0,0.1203069]
[1743313402708,0.1804783,83137.0,83136.0,0.1203097]
[1743313402909,0.1816383,83137.0,83136.0,0.1209497]
[1743313403411,0.2475383,83137.0,83136.0,0.1209497]
[1743313404208,0.2475383,83137.0,83136.0,0.2412599]
[1743313404512,0.25963244,83137.0,83136.0,0.2412599]
[1743313405907,0.2475383,83137.0,83136.0,0.2412599]
[1743313406112,0.2475383,83137.0,83136.0,0.2745599]
[1743313407617,0.4880198,83137.0,83136.0,0.2745599]
[1743313407816,0.4551198,83137.0,83136.0,0.3051599]
[1743313408000,0.4221198,83137.0,83136.0,0.3051599]
[1743313408205,0.5363198,83137.0,83136.0,0.3051599]
[1743313408606,0.6008198,83137.0,83136.0,0.3051599]
[1743313412914,0.5692198,83137.0,83136.0,0.3051599]
[1743313413114,0.5363198,83137.0,83136.0,0.3051599]
[1743313417018,0.1755198,83137.0,83136.0,0.3051599]
[1743313421419,0.11536,83137.0,83136.0,0.3051599]
[1743313421611,0.00116,83137.0,83136.0,0.3051599]
[1743313422016,0.00116,83137.0,83136.0,0.6659599]
[1743313424230,0.10930122,83137.0,83136.0,0.6659599]
[1743313427529,0.00116,83137.0,83136.0,0.6659599]
[1743313427734,0.10814122,83143.0,83142.0,0.1203098]
[1743313427938,0.10930122,83143.0,83142.0,0.1209498]
[1743313428742,0.10930122,83143.0,83142.0,0.2162498]
[1743313428943,0.11130122,83143.0,83142.0,0.2162498]
[1743313430446,0.00516,83143.0,83142.0,0.2162498]
[1743313430838,0.00516,83143.0,83142.0,0.22808183]
[1743313433741,0.00416,83143.0,83142.0,0.22808183]
[1743313434145,0.00316,83143.0,83142.0,0.22808183]
[1743313434342,0.00516,83143.0,83142.0,0.22808183]
[1743313435542,0.00416,83143.0,83142.0,0.22808183]
[1743313437846,0.00316,83143.0,83142.0,0.22808183]
[1743313438149,0.00216,83143.0,83142.0,0.22808183]
[1743313438544,0.00116,83143.0,83142.0,0.22808183]
[1743313441648,0.06436,83143.0,83142.0,0.22808183]
[1743313442735,0.06440001,83143.0,83142.0,0.22808183]
[1743313444152,0.0632,83143.0,83142.0,0.22808183]
[1743313444751,0.0642,83143.0,83142.0,0.22808183]
[1743313445054,0.0662,83143.0,83142.0,0.22808183]
[1743313446849,0.06736,83143.0,83142.0,0.22808183]
[1743313447253,0.0662,83143.0,83142.0,0.22808183]
[1743313447957,0.06736,83143.0,83142.0,0.22808183]
[1743313448258,0.0662,83143.0,83142.0,0.22808183]
[1743313449052,0.0662,83143.0,83142.0,0.19728183]
[1743313450961,0.0662,83143.0,83142.0,0.16598183]
[1743313451160,0.06740001,83143.0,83142.0,0.16598183]
[1743313453569,0.06640001,83143.0,83142.0,0.16598183]
[1743313453756,0.06836,83143.0,83142.0,0.16598183]
[1743313462867,0.06836,83143.0,83142.0,0.19608183]
[1743313469870,0.06836,83143.0,83142.0,0.41228786]
[1743313472081,0.5494683,83143.0,83142.0,0.21684603]
[1743313473185,0.5494683,83143.0,83142.0,0.33715583]
[1743313473582,0.5494683,83143.0,83142.0,0.1209498]
[1743313474875,0.1886683,83143.0,83142.0,0.1209498]
[1743313475073,0.9102683,83143.0,83142.0,0.1209498]
[1743313475971,0.5494683,83143.0,83142.0,0.1209498]
[1743313476987,0.1886683,83143.0,83142.0,0.1209498]
[1743313477187,0.5494683,83143.0,83142.0,0.1209498]
[1743313477386,0.1886683,83143.0,83142.0,0.1209498]
[1743313477583,0.5494683,83143.0,83142.0,0.1209498]
[1743313477785,0.1886683,83143.0,83142.0,0.1209498]
[1743313478095,0.5494683,83143.0,83142.0,0.1209498]
[1743313478890,0.72212319,83143.0,83142.0,0.00064]
[1743313479085,0.1203098,83142.0,83141.0,8e-05]
[1743313479388,0.1214698,83142.0,83141.0,8e-05]
[1743313479580,0.1869698,83142.0,83141.0,0.03258]
[1743313480688,0.1899698,83142.0,83141.0,0.03258]
[1743313480885,0.1899698,83142.0,83141.0,0.1536112]
[1743313481279,0.1899698,83142.0,83141.0,0.1528912]
[1743313481485,0.1899698,83142.0,83141.0,0.03258]
[1743313482084,0.37016481,83142.0,83141.0,0.03258]
[1743313484894,0.37016481,83142.0,83141.0,0.06408]
[1743313486894,0.73096481,83142.0,83141.0,0.06408]
[1743313487594,0.73096481,83142.0,83141.0,0.03258]
[1743313491696,0.37016481,83142.0,83141.0,0.03258]
[1743313491901,0.73096481,83142.0,83141.0,0.03258]
[1743313493303,0.37016481,83142.0,83141.0,0.03258]
[1743313493504,0.5507698,83142.0,83141.0,0.03258]
[1743313497900,0.6649298,83142.0,83141.0,0.03258]
[1743313498701,0.3041298,83142.0,83141.0,0.03258]
[1743313498905,0.3041298,83142.0,83141.0,0.0333]
[1743313499205,0.6649298,83142.0,83141.0,0.0333]
[1743313499409,0.6649298,83142.0,83141.0,0.03258]
[1743313500207,0.72342391,83142.0,83141.0,0.03258]
[1743313500797,0.72342391,83142.0,83141.0,0.03326]
[1743313502194,0.72342391,83142.0,83141.0,0.03258]
[1743313503405,0.72342391,83142.0,83141.0,0.0325]
[1743313503707,0.36262391,83142.0,83141.0,0.0325]
[1743313503906,0.36262391,83142.0,83141.0,0.03322]
[1743313504309,0.72342391,83142.0,83141.0,0.03322]
[1743313504502,0.72342391,83142.0,83141.0,0.0325]
[1743313508911,0.93920145,83142.0,83141.0,0.0325]
[1743313509303,0.57840145,83142.0,83141.0,0.0325]
[1743313509507,0.93920145,83142.0,83141.0,0.03314]
[1743313509706,0.93920145,83142.0,83141.0,0.0325]
[1743313509911,0.57840145,83142.0,83141.0,0.0325]
[1743313510110,0.93920145,83142.0,83141.0,0.03314]
[1743313510308,0.93920145,83142.0,83141.0,0.0325]
[1743313510506,0.57840145,83142.0,83141.0,0.0325]
[1743313510711,0.57840145,83142.0,83141.0,0.03314]
[1743313510906,0.93920145,83142.0,83141.0,0.03314]
[1743313511112,0.93920145,83142.0,83141.0,0.0325]
[1743313511910,0.72342391,83142.0,83141.0,0.0325]
[1743313512306,0.36262391,83142.0,83141.0,0.0325]
[1743313512604,0.72342391,83142.0,83141.0,0.03374]
[1743313512909,0.72342391,83142.0,83141.0,0.0325]
[1743313516321,0.86113612,83142.0,83141.0,0.0325]
[1743313516514,0.50033612,83142.0,83141.0,0.0325]
[1743313516716,0.86113612,83142.0,83141.0,0.0325]
[1743313518514,0.86113612,83142.0,83135.0,0.0311]
[1743313518515,0.1203185,83136.0,83135.0,0.0311]
[1743313518725,0.1214785,83136.0,83135.0,0.03226]
[1743313518923,0.1214785,83136.0,83135.0,0.0311]
[1743313519117,0.1214785,83136.0,83135.0,0.03182]
[1743313519422,0.5472785,83136.0,83135.0,0.03182]
[1743313519619,0.5472785,83136.0,83135.0,0.0311]
[1743313521921,0.5472785,83136.0,83135.0,0.0632]
[1743313522120,0.9080785,83136.0,83135.0,0.0632]
[1743313523724,0.1864785,83136.0,83135.0,0.0632]
[1743313523918,1.10428482,83136.0,83135.0,0.0632]
[1743313524623,1.10428482,83136.0,83135.0,0.0948]
[1743313525821,0.38268482,83136.0,83135.0,0.0948]
[1743313526118,1.10428482,83136.0,83135.0,0.0948]
[1743313526624,0.96657261,83136.0,83135.0,0.0948]
[1743313529720,0.24497261,83136.0,83135.0,0.0948]
[1743313529919,0.96657261,83136.0,83135.0,0.09548]
[1743313530119,0.96657261,83136.0,83135.0,0.0948]
[1743313530318,0.96657261,83136.0,83135.0,0.09556]
[1743313530717,0.24497261,83136.0,83135.0,0.0948]
[1743313530918,0.96657261,83136.0,83135.0,0.09596]
[1743313531124,0.96657261,83136.0,83135.0,0.0948]
[1743313532124,0.96657261,83136.0,83134.0,8e-05]
[1743313532125,0.1203199,83135.0,83134.0,8e-05]
[1743313532426,0.1203315,83127.0,83124.0,0.1203352]
[1743313532626,0.5964515,83127.0,83126.0,0.00116]
[1743313533130,0.5964515,83127.0,83126.0,0.03386]
[1743313533323,0.6572515,83127.0,83126.0,0.09466]
[1743313533926,0.2964515,83127.0,83126.0,0.09466]
[1743313534127,0.6572515,83127.0,83126.0,0.09466]
[1743313534518,0.6572515,83127.0,83126.0,0.0935]
[1743313534719,0.66934959,83127.0,83126.0,0.0935]
[1743313535115,0.1203416,83120.0,83119.0,8e-05]
[1743313535415,0.1203474,83116.0,83104.0,0.0601817]
[1743313535615,0.2356674,83116.0,83115.0,0.00112126]
[1743313536333,0.2964674,83116.0,83115.0,0.00112126]
[1743313536729,0.30555184,83116.0,83115.0,0.00112126]
[1743313537032,0.31731711,83116.0,83115.0,0.00112126]
[1743313540324,0.31731711,83116.0,83115.0,0.00048126]
[1743313541437,0.31731711,83116.0,83115.0,0.00172126]
[1743313544151,0.31731711,83116.0,83115.0,0.00048126]
[1743313544737,0.31731711,83116.0,83115.0,0.00164126]
[1743313545542,0.67811711,83116.0,83115.0,0.00164126]
[1743313545746,0.67811711,83116.0,83115.0,0.00048126]
[1743313546333,0.67811711,83116.0,83115.0,0.12083016]
[1743313546735,0.67811711,83116.0,83115.0,0.15233016]
[1743313549244,0.67811711,83116.0,83115.0,0.03198126]
[1743313552946,0.67811711,83116.0,83115.0,0.06428126]
[1743313553445,0.31731711,83116.0,83115.0,0.06492126]
[1743313553643,0.67811711,83116.0,83115.0,0.06560126]
[1743313553849,0.67811711,83116.0,83115.0,0.06496126]
[1743313555134,0.67811711,83116.0,83115.0,0.00116126]
[1743313555343,0.67811711,83116.0,83115.0,0.00048126]
[1743313556746,0.67811711,83116.0,83115.0,0.00112126]
[1743313559157,0.67811711,83116.0,83115.0,0.03362126]
[1743313560343,0.67811711,83116.0,83115.0,0.15397016]
[1743313560951,0.67811711,83116.0,83115.0,0.03362126]
[1743313561352,0.67811711,83116.0,83115.0,0.15397016]
[1743313561554,0.67811711,83116.0,83115.0,0.03362126]
[1743313562955,0.67811711,83116.0,83115.0,0.15397016]
[1743313563146,0.67811711,83116.0,83115.0,0.18637016]
[1743313563348,0.67811711,83116.0,83115.0,0.15397016]
[1743313564346,0.85815795,83116.0,83115.0,0.15397016]
[1743313565746,0.85815795,83116.0,83115.0,0.15333016]
[1743313568055,0.736631,83116.0,83115.0,0.03298126]
[1743313568644,0.736631,83116.0,83115.0,0.15333016]
[1743313568851,0.736631,83116.0,83115.0,0.15405016]
[1743313569851,0.736631,83116.0,83115.0,0.15333016]
[1743313571250,0.261671,83116.0,83115.0,0.15333016]
[1743313571451,0.261671,83116.0,83115.0,0.15397016]
[1743313571452,0.8808118,83116.0,83115.0,0.15397016]
[1743313571658,0.8808118,83116.0,83115.0,0.15333016]
[1743313571860,0.8808118,83116.0,83115.0,0.03298126]
[1743313573056,0.86904653,83116.0,83115.0,0.15333016]
[1743313573359,0.86904653,83116.0,83115.0,0.18507016]
[1743313573755,0.50824653,83116.0,83115.0,0.18507016]
[1743313573955,0.86904653,83116.0,83115.0,0.18507016]
[1743313575155,0.86904653,83116.0,83115.0,0.18443016]
[1743313576565,0.86904653,83116.0,83115.0,0.18507016]
[1743313577167,0.86904653,83116.0,83115.0,0.18443016]
[1743313578555,0.86904653,83116.0,83115.0,0.18213016]
[1743313579265,0.72486573,83116.0,83115.0,0.18213016]
[1743313579467,0.72486573,83116.0,83115.0,0.18289016]
[1743313580561,0.36406573,83116.0,83115.0,0.18289016]
[1743313580961,0.72486573,83116.0,83115.0,0.18289016]
[1743313581158,0.36406573,83116.0,83115.0,0.18289016]
[1743313581362,0.72486573,83116.0,83115.0,0.18289016]
[1743313582761,0.36406573,83116.0,83115.0,0.18289016]
[1743313582960,0.72486573,83116.0,83115.0,0.18289016]
[1743313588661,0.72486573,83116.0,83115.0,0.15179016]
[1743313588865,0.36406573,83116.0,83115.0,0.15179016]
[1743313589065,0.72486573,83116.0,83115.0,0.15179016]
[1743313589375,0.36406573,83116.0,83115.0,0.15179016]
[1743313589571,0.72486573,83116.0,83115.0,0.15179016]
[1743313590578,0.36406573,83116.0,83115.0,0.15179016]
[1743313590778,0.72486573,83116.0,83115.0,0.15179016]
[1743313592675,0.36406573,83116.0,83115.0,0.15179016]